fUST/lending_fUST_20240129
["ID","MTS","AMOUNT","RATE_DAILY","PERIOD"]
[312942652,1706478644990,-555.97053838,0.00020665,2]
[312942654,1706478644999,-161.19857963,0.00020665,2]
[312942656,1706478645008,-1243.61210586,0.00020665,2]
[312942658,1706478645018,-155.00155002,0.00020666,2]
[312942660,1706478645027,-617.31766755,0.00020666,2]
[312942663,1706478645036,-19884.40674015,0.00020668,2]
[312942665,1706478645045,-11065.46356368,0.00020723,2]
[312942667,1706478645054,-185.5685607,0.00020731,2]
[312942669,1706478645063,-3486.23529972,0.00020832,2]
[312942671,1706478645072,-2139.65340687,0.00021067,2]
[312942673,1706478645081,-1953.78,0.00021147,3]
[312942675,1706478645090,-155.00310006,0.00021165,2]
[312942677,1706478645099,-155.00155002,0.00021166,4]
[312942679,1706478645108,-7961.97573395,0.00021166,2]
[312942681,1706478645117,-59096.82402559,0.00021167,2]
[312942683,1706478645126,-2086.73700022,0.00021167,2]
[312942685,1706478645135,-100538.75106851,0.00021167,2]
[312942736,1706478646740,-1928.90725858,0.00021167,2]
[312942738,1706478786652,-499.00501624,0.0002496,5]
[312942739,1706478804730,-165.0,0.00021155,3]
[312942741,1706478833621,265.99498376,0.0002496,5]
[312942743,1706478863140,-2099.3,0.00021146,3]
[312942744,1706478863164,-900.7,0.00021156,3]
[312942745,1706478866355,-2122.3,0.00021156,3]
[312942746,1706478866380,-877.7,0.00021156,3]
[312942748,1706478877556,-154.87609912,0.000176,2]
[312942749,1706478877580,-174.74145795,0.00021,2]
[312942750,1706478877606,-155.00155002,0.0002114,2]
[312942751,1706478877630,-617.31766755,0.0002114,2]
[312942752,1706478877654,-155.00155002,0.0002114,2]
[312942753,1706478877683,-216.06167534,0.0002114,2]
[312942754,1706478932270,-1638.0,0.0001872,5]
[312942755,1706479026949,-415.0,0.00018716,2]
[312942826,1706479831712,-462.228,0.00015927,2]
[312942876,1706479837823,-522.60932661,0.00015926,2]
[312942878,1706479837832,-2359.10146472,0.00015927,2]
[312942880,1706479837842,-20892.43059927,0.00015927,2]
[312942882,1706479837856,-1243.61210586,0.00015928,2]
[312942884,1706479837865,-8289.25333681,0.00015928,2]
[312942886,1706479837877,-10631.92396925,0.00015928,2]
[312942888,1706479837886,-1074.35724294,0.00015929,2]
[312943016,1706479840838,-921.16590948,0.00015929,2]
[312943017,1706479840849,-617.31766755,0.00015929,2]
[312943018,1706479840862,-1805.4101377,0.00015933,2]
[312943019,1706479840872,-250.0,0.00015933,2]
[312943020,1706479840881,-17909.35819867,0.00016616,2]
[312943060,1706479851192,2821.32946472,0.0001246,2]
[312943061,1706479859018,155.00155002,0.00016843,3]
[312943063,1706479871162,1469.91265112,0.0001246,2]
[312943064,1706479889170,1469.91265112,0.0001246,2]
[312943065,1706479905181,1469.91265112,0.0001246,2]
[312943066,1706479925188,1469.91265112,0.0001246,2]
[312943067,1706479945177,1469.91265112,0.0001246,2]
[312943069,1706479965173,1469.91265112,0.0001246,2]
[312943070,1706479981185,1469.91265112,0.0001246,2]
[312943071,1706479999188,1469.91265112,0.0001246,2]
[312943072,1706480021249,1469.91265112,0.0001246,2]
[312943073,1706480043186,1469.91265112,0.0001246,2]
[312943074,1706480061196,892.73965869,0.0001246,2]
[312943076,1706480486306,7619.0523147,0.00014483,2]
[312943077,1706480540472,335.5636504,0.00014904,2]
[312943081,1706480666168,24900.0,0.00014245,2]
[312943110,1706481031935,-392.7052971,0.00015004,2]
[312943111,1706481031944,-1580.96149177,0.00015004,2]
[312943113,1706481031953,-1294.9059591,0.00015005,2]
[312943115,1706481031962,-1697.47554063,0.00015006,2]
[312943117,1706481031971,-1162.3217201,0.00015028,2]
[312943119,1706481031980,-419.075476,0.00015742,2]
[312943121,1706481031989,-311.1869943,0.00016614,2]
[312943238,1706481038075,-305.27296953,0.00016614,2]
[312943240,1706481038085,-1423.65861087,0.00016614,2]
[312943242,1706481038096,-2272.01270733,0.00016614,2]
[312943310,1706481043009,-1622.39495497,0.00016614,2]
[312943312,1706481043023,-8005.30808556,0.00016614,2]
[312943333,1706481051192,155.00155002,0.00016842,3]
[312943334,1706481067166,155.00155002,0.00014951,2]
[312943335,1706481085163,155.00155002,0.00014951,2]
[312943336,1706481170258,283.47066986,0.00014951,20]
[312943337,1706481222826,-1697.47554063,0.00016133,2]
[312943338,1706481222848,-1000.0100001,0.00016134,2]
[312943339,1706481222870,-384.53538259,0.00016134,2]
[312943340,1706481222891,-37000.01230553,0.00016134,2]
[312943341,1706481222912,-261.8035314,0.00016135,2]
[312943342,1706481222933,-7965.10067001,0.00016135,2]
[312943343,1706481222954,-4818.41258945,0.00016136,2]
[312943344,1706481222975,-63472.31229692,0.00016136,2]
[312943345,1706481222996,-6990.6418014,0.00016139,2]
[312943346,1706481223017,-500.0,0.00016612,2]
[312943347,1706481223038,-243.02965196,0.00016612,2]
[312943348,1706481223059,-155.00155002,0.00016612,2]
[312943349,1706481223079,-155.00155002,0.00016613,2]
[312943350,1706481223100,-125356.66312997,0.00016614,2]
[312943396,1706482232129,-218.1696095,0.00015389,2]
[312943397,1706482232138,-646.82171098,0.00015389,2]
[312943519,1706482238568,-1050.65382965,0.00015389,2]
[312943521,1706482238578,-453.28196782,0.0001539,2]
[312943523,1706482238588,-4961.46076591,0.00015393,2]
[312943525,1706482238600,-8274.90154086,0.00015393,2]
[312943534,1706482238678,-1863.19798419,0.00015393,2]
[312943536,1706482238690,-1575.9221681,0.00015393,2]
[312943537,1706482238702,-8224.51754094,0.00015393,2]
[312943538,1706482238711,-209.537738,0.00015593,2]
[312943539,1706482238720,-185.46208802,0.00016515,2]
[312943540,1706482238730,-1369.47800467,0.00016611,2]
[312943541,1706482238739,-910.64585873,0.00016612,2]
[312943542,1706482238749,-156.99269702,0.00016612,2]
[312943544,1706482238758,-591.46656872,0.00016612,2]
[312943546,1706482238768,-23656.59165028,0.00016613,2]
[312943548,1706482238777,-240.61520942,0.00016613,2]
[312943550,1706482238787,-159278.49203617,0.00016614,2]
[312943551,1706482238796,-1242.33961866,0.00016615,2]
[312943553,1706482238806,-504.89770852,0.00016615,2]
[312943555,1706482238816,-20870.06000025,0.00016615,2]
[312943557,1706482238825,-200.0,0.00016931,2]
[312943558,1706482238835,-151.0,0.00017841,2]
[312943559,1706482238844,-395.7564339,0.00018713,2]
[312943560,1706482238853,-1575.82696472,0.00018713,2]
[312943561,1706482238863,-1294.22321507,0.00018713,2]
[312943562,1706482238872,-155.00155002,0.00018713,2]
[312943563,1706482238881,-1987.4097221,0.00018714,2]
[312943564,1706482238890,-199.34410144,0.00018714,2]
[312943565,1706482238899,-16624.3739853,0.00018715,2]
[312943566,1706482238909,-151.0,0.0001907,2]
[312943567,1706482238918,-167.507665,0.00019178,2]
[312943568,1706482238927,-151.0,0.00020298,2]
[312943569,1706482238936,-620.00000045,0.00020428,2]
[312943570,1706482238946,-309.62978681,0.00021138,2]
[312943571,1706482238955,-199.99224988,0.00021139,2]
[312943572,1706482238963,-300.0,0.0002114,2]
[312943573,1706482238973,-3508.76391402,0.0002114,2]
[312943574,1706482238982,-2086.73700022,0.0002114,2]
[312943575,1706482238991,-175.37542985,0.00021141,2]
[312943576,1706482239001,-19884.40674015,0.00021141,2]
[312943577,1706482239010,-155.10077382,0.00021165,2]
[312943578,1706482239020,-160.2798517,0.00021166,2]
[312943579,1706482239029,-297.63971529,0.00021166,2]
[312943580,1706482239038,-414.48262922,0.00021167,2]
[312943581,1706482239047,-178.95133185,0.00021257,2]
[312943582,1706482239057,-295.0754832,0.00021357,2]
[312943583,1706482239066,-243.38014119,0.00021357,2]
[312943584,1706482239076,-2040.23895933,0.00021359,2]
[312943585,1706482239085,-1026.83362731,0.00021359,2]
[312943586,1706482239094,-3747.87536289,0.00021359,2]
[312943587,1706482239104,-302.12279675,0.00021359,2]
[312943588,1706482239113,-904.20873701,0.00021359,2]
[312943589,1706482239122,-167.10938198,0.00021359,2]
[312943590,1706482239131,-261.2804971,0.00021359,2]
[312943591,1706482239141,-561.94551525,0.00021359,2]
[312943592,1706482239150,-155.03875969,0.00021359,2]
[312943593,1706482239160,-588.69915361,0.00021359,2]
[312943594,1706482239169,-527.01508147,0.00021359,2]
[312943595,1706482239179,-181.08904402,0.00021359,2]
[312943596,1706482239188,-166.77726809,0.00021359,2]
[312943597,1706482239197,-329.74860932,0.00021359,2]
[312943598,1706482239207,-620.47380229,0.00021361,2]
[312943599,1706482239216,-230.12226655,0.00021361,2]
[312943600,1706482239226,-620.00000002,0.00021449,2]
[312943601,1706482239235,-39181.19967806,0.00021461,2]
[312943602,1706482239244,-151.0,0.00021461,2]
[312943603,1706482239253,-151.0,0.00021461,2]
[312943604,1706482239263,-151.0,0.00021461,2]
[312943605,1706482239272,-151.0,0.00021461,2]
[312943606,1706482239281,-151.0,0.00021461,2]
[312943607,1706482239291,-151.0,0.00021461,2]
[312943608,1706482239300,-151.0,0.00021461,2]
[312943609,1706482239310,-151.0,0.00021461,2]
[312943610,1706482239319,-151.0,0.00021461,2]
[312943611,1706482239328,-4838.851468,0.00021461,2]
[312943612,1706482239433,-4838.851468,0.00021461,2]
[312943613,1706482239442,-151.0,0.00021527,2]
[312943614,1706482239452,-185.46208802,0.00021679,2]
[312943615,1706482239461,-150.9999,0.0002177,2]
[312943616,1706482239470,-542.79526177,0.00021778,2]
[312943617,1706482239480,-48244.23818961,0.00021779,2]
[312943618,1706482239490,-151.0,0.00021779,2]
[312943619,1706482239500,-155.941663,0.00021779,2]
[312943620,1706482239509,-151.0,0.00021779,2]
[312943621,1706482239520,-151.0,0.00021779,2]
[312943622,1706482239529,-151.0,0.00021779,2]
[312943623,1706482239539,-151.0,0.00021779,2]
[312943624,1706482239549,-151.0,0.00021779,2]
[312943625,1706482239560,-4838.851468,0.00021779,2]
[312943626,1706482239571,-4838.851468,0.00021779,2]
[312943627,1706482239580,-290.33120677,0.0002181,2]
[312943628,1706482239589,-166.666666,0.00021918,2]
[312943629,1706482239599,-426.44750157,0.00022,2]
[312943630,1706482239609,-2036.5412467,0.00022,2]
[312943631,1706482239617,-155.00155002,0.00022,2]
[312943632,1706482239628,-3972.88161015,0.00022,2]
[312943633,1706482239637,-151.0,0.00022026,2]
[312943634,1706482239648,-153.22824,0.00022032,2]
[312943635,1706482239658,-151.0,0.00022032,2]
[312943636,1706482239667,-151.0,0.00022032,2]
[312943637,1706482239677,-151.0,0.00022032,2]
[312943638,1706482239686,-8505.42491499,0.00022039,2]
[312943639,1706482239699,-151.0,0.00022039,2]
[312943640,1706482239709,-4838.851468,0.00022039,2]
[312943641,1706482239718,-4838.851468,0.00022039,2]
[312943642,1706482239727,-4895.97443723,0.00022045,2]
[312943643,1706482239737,-151.0,0.00022045,2]
[312943644,1706482239746,-151.0,0.00022045,2]
[312943645,1706482239755,-161.564897,0.00022045,2]
[312943646,1706482239765,-3851.17743769,0.00022052,2]
[312943647,1706482239775,-5000.0,0.00022054,2]
[312943648,1706482239784,-3766.65673116,0.00022061,2]
[312943649,1706482239793,-5000.0,0.00022061,2]
[312943650,1706482239803,-246.111146,0.00022061,2]
[312943651,1706482239812,-4838.851468,0.00022061,2]
[312943652,1706482239822,-4838.851468,0.00022061,2]
[312943653,1706482239831,-5000.0,0.00022066,2]
[312943654,1706482239840,-3527.58790647,0.00022068,2]
[312943655,1706482239849,-21105.30791776,0.00022068,2]
[312943656,1706482239858,-166.666666,0.00022431,2]
[312943657,1706482239868,-620.0,0.00022522,2]
[312943658,1706482239877,-151.0,0.00022755,2]
[312943659,1706482239886,-166.666666,0.00022944,2]
[312943660,1706482239896,-1417.01955965,0.00023,2]
[312943661,1706482239906,-9950.40162057,0.00023,2]
[312943662,1706482239915,-151.0,0.00023,2]
[312943663,1706482239924,-151.0,0.00023,2]
[312943664,1706482239933,-4838.851468,0.00023,2]
[312943665,1706482239942,-4838.851468,0.00023,2]
[312943666,1706482239952,-209.537738,0.00023389,2]
[312943667,1706482239961,-153.0,0.00023425,2]
[312943668,1706482239970,-166.666666,0.00023456,2]
[312943669,1706482239979,-620.0,0.00023648,2]
[312943670,1706482239988,-166.666666,0.00023969,2]
[312943671,1706482239998,-151.0,0.00023984,2]
[312943672,1706482240007,-157.3764171,0.00024384,2]
[312943673,1706482240017,-398.6234152,0.00024384,2]
[312943674,1706482240026,-153.0,0.00024384,2]
[312943675,1706482240035,-153.0,0.00024384,2]
[312943676,1706482240044,-166.666666,0.00024482,2]
[312943677,1706482240054,-16185.50936574,0.00024596,2]
[312943678,1706482240063,-1153.988047,0.00024658,2]
[312943679,1706482240072,-151.0,0.00024658,2]
[312943680,1706482240081,-4838.851468,0.00024658,2]
[312943681,1706482240091,-4838.851468,0.00024658,2]
[312943682,1706482240100,-620.0,0.0002483,2]
[312943683,1706482240109,-233.01003248,0.0002496,5]
[312943684,1706482240119,-155.00155002,0.0002496,2]
[312943685,1706482240128,-1828.7489345,0.00025,2]
[312943686,1706482240137,-4729.25513018,0.00025,2]
[312943687,1706482240146,-7652.00570539,0.00025,2]
[312943688,1706482240156,-680.86891106,0.00025,2]
[312943689,1706482240166,-850.88910275,0.00025,2]
[312943690,1706482240175,-577.0,0.00025,2]
[312943691,1706482240184,-151.0,0.00025212,2]
[312943692,1706482240194,-200.0,0.00025479,2]
[312943693,1706482240203,-5000.0,0.0002603,2]
[312943694,1706482240212,-620.0,0.00026072,2]
[312943695,1706482240221,-1000.0,0.00026103,3]
[312943696,1706482240231,-1000.0,0.00026103,3]
[312943697,1706482240239,-1000.0,0.00026103,3]
[312943698,1706482240249,-1000.0,0.00026103,3]
[312943699,1706482240258,-151.0,0.00026103,2]
[312943700,1706482240268,-221.69462757,0.00026103,2]
[312943701,1706482240277,-1000.0,0.00026103,3]
[312943702,1706482240287,-1000.0,0.00026103,3]
[312943703,1706482240296,-4838.851468,0.00026103,2]
[312943704,1706482240305,-4838.851468,0.00026103,2]
[312943705,1706482240315,-1000.0,0.00026402,3]
[312943706,1706482240325,-1000.0,0.00026402,3]
[312943707,1706482240335,-1000.0,0.00026402,3]
[312943708,1706482240344,-1000.0,0.00026402,3]
[312943709,1706482240353,-1000.0,0.00026402,3]
[312943710,1706482240363,-151.0,0.00026441,2]
[312943711,1706482240373,-1153.988047,0.00026484,2]
[312943712,1706482240382,-10000.0,0.000267,2]
[312943713,1706482240391,-151.0,0.000267,2]
[312943714,1706482240400,-4838.851468,0.000267,2]
[312943715,1706482240410,-4838.851468,0.000267,2]
[312943716,1706482240419,-2684.58944303,0.00027,2]
[312943717,1706482240428,-1500.0,0.00027,2]
[312943718,1706482240438,-278.56764015,0.00027395,2]
[312943719,1706482240447,-155.650869,0.00027395,2]
[312943720,1706482240456,-500.0,0.00027397,2]
[312943721,1706482240466,-500.0,0.00027397,2]
[312943722,1706482240475,-155.0,0.00027397,2]
[312943723,1706482240485,-1820.74,0.00027397,3]
[312943724,1706482240494,-2007.69,0.00027397,3]
[312943725,1706482240504,-1673.08,0.00027397,3]
[312943726,1706482240514,-200.0,0.000274,4]
[312943727,1706482240523,-160.0,0.00027465,3]
[312943728,1706482240532,-4327.43391437,0.000275,2]
[312943759,1706482241293,-12184.61805839,0.000275,2]
[312943772,1706482241406,-1429.55506106,0.000275,2]
[312943774,1706482241416,-6807.15450346,0.000275,2]
[312943776,1706482241428,-3799.33342401,0.000275,2]
[312943778,1706482241438,-151.0,0.000275,2]
[312943780,1706482241447,-268.94653184,0.000275,2]
[312943782,1706482241458,-996.28439946,0.000275,2]
[312943989,1706482243180,-2605.09049172,0.000275,2]
[312943996,1706482243236,-968.53004498,0.000275,2]
[312943998,1706482243245,-4838.851468,0.000275,2]
[312944000,1706482243254,-874.22,0.00027517,10]
[312944002,1706482243264,-500.0,0.00027534,2]
[312944004,1706482243274,-513.394521,0.0002754,2]
[312944007,1706482243283,-1140.17172087,0.0002754,2]
[312944010,1706482243295,-2.20984913,0.0002754,2]
[312944013,1706482243305,-896.18970006,0.0002754,2]
[312944016,1706482243317,-299.38066094,0.0002754,2]
[312944018,1706482243326,-384.290474,0.0002754,2]
[312944020,1706482243335,-228.358669,0.0002754,2]
[312944022,1706482243343,-66.31652883,0.00027583,2]
[312944023,1706482243355,-147.17818117,0.00027583,2]
[312944025,1706482243364,-177.569902,0.00027583,2]
[312944027,1706482243373,-151.0,0.00027669,2]
[312944029,1706482243382,-174.25191683,0.00027671,2]
[312944031,1706482243392,-270.1492761,0.00027671,2]
[312944316,1706482246255,-91.49308466,0.00027671,2]
[312944318,1706482246264,-500.0,0.00027671,2]
[312944320,1706482246275,-500.0,0.00027671,2]
[312944322,1706482246285,-500.0,0.00027808,2]
[312944324,1706482246294,-7701.27816347,0.00027855,2]
[312944326,1706482246303,-513.394521,0.00027884,2]
[312944328,1706482246312,-1142.38157,0.00027884,2]
[312944330,1706482246321,-1195.570361,0.00027884,2]
[312944332,1706482246331,-384.290474,0.00027884,2]
[312944334,1706482246340,-228.358669,0.00027884,2]
[312944336,1706482246348,-338.6285076,0.0002792,2]
[312944338,1706482246358,-4838.851468,0.00027944,2]
[312944340,1706482246367,-25.75318097,0.00027944,2]
[312944342,1706482246378,-4813.09829703,0.00027944,2]
[312944344,1706482246387,-500.0,0.00027945,2]
[312944346,1706482246396,-151.0,0.00027945,2]
[312944348,1706482246406,-500.0,0.00027945,2]
[312944350,1706482246414,-523.91944735,0.00027999,2]
[312944352,1706482246424,-500.0,0.00027999,2]
[312944354,1706482246433,-500.0,0.00027999,2]
[312944356,1706482246442,-201.81691485,0.00028,2]
[312944358,1706482246451,-239.92087878,0.00028,2]
[312944360,1706482246461,-600.0,0.00028,2]
[312944362,1706482246470,-3000.0,0.00028,4]
[312944364,1706482246478,-36517.0,0.00028,2]
[312944365,1706482246488,-1000.0,0.00028,2]
[312944367,1706482246497,-313.18582836,0.00028,7]
[312944369,1706482246506,-1500.0,0.00028,2]
[312944371,1706482246516,-5000.0,0.00028023,5]
[312944374,1706482246526,-500.0,0.00028082,2]
[312944375,1706482246535,-160.0,0.00028114,4]
[312944378,1706482246545,-500.0,0.00028219,2]
[312944379,1706482246554,-500.0,0.00028219,2]
[312944389,1706482246640,-513.394521,0.00028228,2]
[312944391,1706482246652,-1142.38157,0.00028228,2]
[312944393,1706482246662,-1195.570361,0.00028228,2]
[312944395,1706482246671,-384.290474,0.00028228,2]
[312944397,1706482246680,-228.358669,0.00028228,2]
[312944399,1706482246689,-500.0,0.00028229,2]
[312944401,1706482246698,-159.55330113,0.0002828,2]
[312944403,1706482246707,-1153.988047,0.00028311,2]
[312944405,1706482246716,-500.0,0.00028356,2]
[312944407,1706482246725,-340.0,0.000284,13]
[312944409,1706482246734,-245.580359,0.000284,2]
[312944411,1706482246743,-500.0,0.00028493,2]
[312944413,1706482246752,-500.0,0.00028493,2]
[312944415,1706482246762,-2500.0,0.000285,2]
[312944417,1706482246771,-857.1117,0.000285,2]
[312944419,1706482246779,-857.1117,0.000285,2]
[312944421,1706482246790,-513.394521,0.00028573,2]
[312944423,1706482246799,-1142.38157,0.00028573,2]
[312944425,1706482246808,-1195.570361,0.00028573,2]
[312944427,1706482246817,-384.290474,0.00028573,2]
[312944429,1706482246827,-228.358669,0.00028573,2]
[312944431,1706482246836,-2807.0,0.000286,2]
[312944433,1706482246845,-500.0,0.0002863,2]
[312944435,1706482246853,-160.0,0.00028763,5]
[312944437,1706482246862,-500.0,0.00028767,2]
[312944439,1706482246871,-260.8033785,0.00028767,2]
[312944441,1706482246881,-155.0,0.00028767,2]
[312944443,1706482246890,-61823.64800878,0.000288,2]
[312944445,1706482246898,-151.00151002,0.00028897,7]
[312944447,1706482246907,-151.0,0.00028898,2]
[312944449,1706482246917,-254.37666093,0.000289,2]
[312944451,1706482246926,-513.394521,0.00028917,2]
[312944453,1706482246936,-1142.38157,0.00028917,2]
[312944455,1706482246944,-1195.570361,0.00028917,2]
[312944457,1706482246954,-384.290474,0.00028917,2]
[312944459,1706482246963,-228.358669,0.00028917,2]
[312944461,1706482246971,-21458.85,0.0002898,3]
[312944463,1706482246980,-1467.0,0.00028989,9]
[312944464,1706482246989,-4491.53695247,0.0002899,3]
[312944466,1706482246998,-53616.90012824,0.00028999,2]
[312944767,1706482470670,8447.89020155,0.0001,2]
[312944815,1706483438364,-155.00155002,0.00020108,2]
[312944816,1706483438374,-155.00155002,0.00020109,2]
[312944817,1706483438383,-371.388611,0.0002011,2]
[312944818,1706483438392,-505.35487193,0.00020447,2]
[312944823,1706483441500,-2494.64512807,0.00020447,2]
[312944824,1706483441509,-171.9035505,0.0002067,2]
[312944825,1706483441518,-153.40122462,0.00020907,2]
[312944826,1706483441528,-24900.0,0.00020968,2]
[312944827,1706483441537,-1468.66343637,0.00021747,2]
[312944828,1706483441547,-10138.82904609,0.00021897,2]
[312944846,1706483443378,-1214.09591886,0.00021897,2]
[312944847,1706483443391,-972.01848822,0.00021897,2]
[312944953,1706484633815,-155.00310006,0.00018712,2]
[312944955,1706484633825,-239.41333941,0.00018713,2]
[312944961,1706484633876,-349.52554392,0.00018713,2]
[312944963,1706484633885,-179.08321251,0.00018714,2]
[312944965,1706484633895,-329.86581438,0.00018715,2]
[312944967,1706484633904,-778.89787289,0.0001872,2]
[312945047,1706484641941,-297.91664767,0.0001872,2]
[312945048,1706484642362,-573.33063533,0.0001872,2]
[312945063,1706484643573,-18234.26158426,0.0001872,2]
[312945064,1706484643583,-1118.01608848,0.00018721,2]
[312945084,1706484646747,-588.45942389,0.00018719,2]
[312945085,1706484646757,-3220.18642611,0.00018721,2]
[312945103,1706485161876,280.0,0.00021376,7]
[312945105,1706485462726,319.0,0.00022151,7]
[312945149,1706485832474,-418.51762617,0.00015667,2]
[312945152,1706485832486,-1007.36009066,0.00015667,2]
[312945243,1706485837760,-6578.71800565,0.00015667,2]
[312945244,1706485837770,-12976.517101,0.00015767,2]
[312945245,1706485837779,-293.945903,0.00015931,2]
[312945246,1706485837788,-155.00310006,0.00016631,2]
[312945247,1706485837797,-155.00155002,0.00016642,2]
[312945248,1706485837808,-179.08321251,0.00016643,2]
[312945249,1706485837817,-19884.40674015,0.00016644,2]
[312945250,1706485837826,-24900.0,0.00016874,2]
[312945251,1706485837836,-155.74881665,0.00017565,2]
[312945252,1706485837845,-200.0,0.00018307,2]
[312945253,1706485837854,-199.34410144,0.00018615,2]
[312945254,1706485837863,-1575.82696472,0.00018615,2]
[312945255,1706485837873,-16624.3739853,0.00018616,2]
[312945256,1706485837882,-153.62690689,0.00018619,2]
[312945257,1706485837891,-395.7564339,0.00018719,2]
[312945258,1706485837900,-1294.22321507,0.00018719,2]
[312945259,1706485837909,-1987.4097221,0.0001872,2]
[312945260,1706485837918,-167.507665,0.00019178,2]
[312945261,1706485837927,-273.8269089,0.00019745,2]
[312945262,1706485837936,-280.0,0.00020138,2]
[312945263,1706485837946,-153.62690688,0.00020335,2]
[312945264,1706485837955,-527.01508147,0.00021049,2]
[312945265,1706485837964,-155.10077382,0.00021049,2]
[312945266,1706485837973,-904.20873701,0.00021049,2]
[312945267,1706485837982,-167.10938198,0.00021049,2]
[312945268,1706485837991,-181.08904402,0.00021049,2]
[312945269,1706485838000,-1026.83362731,0.00021049,2]
[312945270,1706485838011,-166.77726809,0.00021049,2]
[312945271,1706485838023,-302.12279675,0.00021049,2]
[312945272,1706485838032,-243.38014119,0.00021049,2]
[312945273,1706485838046,-261.2804971,0.00021049,2]
[312945274,1706485838056,-297.63971529,0.00021049,2]
[312945275,1706485838065,-2040.23895933,0.00021049,2]
[312945276,1706485838074,-561.94551525,0.00021049,2]
[312945277,1706485838083,-155.03875969,0.00021049,2]
[312945278,1706485838093,-295.0754832,0.00021049,2]
[312945279,1706485838102,-160.2798517,0.00021049,2]
[312945280,1706485838111,-309.62978681,0.00021049,2]
[312945281,1706485838121,-199.99224988,0.00021049,2]
[312945282,1706485838131,-175.37543085,0.0002105,2]
[312945283,1706485838140,-26385.50442846,0.00021276,2]
[312945284,1706485838150,-329.63140426,0.00021795,2]
[312945285,1706485838160,-15998.30261379,0.00021795,2]
[312945286,1706485838174,-3747.87536289,0.00021896,2]
[312945287,1706485838183,-230.12226655,0.00021897,2]
[312945288,1706485838192,-620.47380229,0.00021897,2]
[312945289,1706485838201,-414.48262922,0.00021897,2]
[312945290,1706485838210,-982.98644277,0.00021897,2]
[312945291,1706485838219,-166.666666,0.00021918,2]
[312945292,1706485838229,-542.79526177,0.00021997,2]
[312945293,1706485838240,-155.650869,0.00021997,2]
[312945294,1706485838251,-278.56764015,0.00021998,2]
[312945295,1706485838263,-2036.5412467,0.00022,2]
[312945296,1706485838272,-3972.88161015,0.00022,2]
[312945297,1706485838281,-155.00155002,0.00022,2]
[312945298,1706485838291,-426.44750157,0.00022,2]
[312945299,1706485838300,-153.62690688,0.00022051,2]
[312945300,1706485838310,-264336.42608441,0.00022151,2]
[312945301,1706485838333,-20298.72908173,0.00022151,2]
[312945302,1706485838343,-300.0,0.00022151,2]
[312945303,1706485838353,-3508.76391402,0.00022151,2]
[312945304,1706485838363,-2086.73700022,0.00022151,2]
[312945305,1706485838383,-155.00310006,0.00022151,2]
[312945306,1706485838394,-260.43027978,0.00022158,2]
[312945307,1706485838403,-1197.97622761,0.00022158,2]
[312945308,1706485838413,-2102.73698873,0.00022158,2]
[312945309,1706485838423,-2073.27680769,0.00022159,2]
[312945310,1706485838432,-3020.88282641,0.0002216,2]
[312945311,1706485838442,-1280.23968767,0.0002216,2]
[312945362,1706486360915,200.0,0.0002207,7]
[312945423,1706487031895,-155.00155002,0.00019464,2]
[312945424,1706487031904,-155.00155002,0.00019465,3]
[312945426,1706487031913,-525.75118754,0.00019472,5]
[312945600,1706487041100,-2186.98605938,0.00019472,5]
[312945601,1706487041110,-273.8269089,0.00019473,2]
[312945602,1706487041119,-24900.0,0.00019475,2]
[312945603,1706487041130,-293.945903,0.00019791,2]
[312945604,1706487041140,-15998.30261279,0.00020988,2]
[312945605,1706487041151,-1993.09130446,0.00020988,2]
[312945606,1706487041162,-185.5685607,0.00021055,2]
[312945607,1706487041173,-9869.07357411,0.00021059,2]
[312945608,1706487041183,-278.56764015,0.00021157,2]
[312945609,1706487041193,-117.66461605,0.00021157,2]
[312945628,1706487043013,-425.13064572,0.00021157,2]
[312945629,1706487043024,-329.63140426,0.00021157,2]
[312945630,1706487043033,-527.01508147,0.00021157,2]
[312945631,1706487043043,-297.63971529,0.00021157,2]
[312945632,1706487043053,-155.03875969,0.00021157,2]